{"text_format":"1","workbook":"xlsx","n_sheets":5,"sheets":["Ansuchen_SV","Controlling","AVB_SV","EA","EA Controlling"],"not_rendered":{"charts":0,"images":11,"macros":1,"external_links":0,"defined_names":126,"comments":0,"pivot_tables":0},"unopened":[],"bounds":{"document_bytes":16777216,"sheet_cells":100000,"rows_first":2000,"rows_last":500,"rows_between":2000,"halvings":0,"cell_chars":16384,"cell_head_chars":4096},"cells_cut":0,"cells_raw":0,"read":"whole","date_system":"1900"}

{"sheet":"Ansuchen_SV","index":0,"n_rows":169,"n_cols":29,"rows_kept":169,"cut":false,"hidden":false,"merged":[[57,4,57,5],[155,1,155,4],[141,6,141,7],[155,6,155,7],[92,1,96,15],[147,10,147,14],[149,2,150,14],[89,6,89,11],[85,6,85,11],[86,6,86,11],[141,1,141,4],[67,12,67,14],[69,7,69,10],[70,7,70,10],[155,10,155,14],[63,5,63,6],[64,5,64,6],[16,6,16,10],[82,6,82,11],[84,6,84,11],[36,6,36,11],[37,6,37,11],[43,7,43,11],[44,7,44,11],[45,7,45,11],[46,7,46,11],[48,7,48,10],[49,7,49,10],[42,6,42,8],[72,7,72,10],[73,7,73,10],[74,7,74,10],[78,7,78,10],[39,6,39,11],[40,6,40,11],[147,6,147,8],[87,6,87,11],[88,6,88,11],[83,6,83,11],[141,10,141,14],[101,1,101,15],[117,1,117,15],[97,1,98,15],[99,1,99,15],[64,12,64,13],[57,2,57,3],[71,7,71,10],[63,10,65,11],[59,7,59,10],[35,6,35,11],[24,6,24,11],[27,6,27,12],[25,6,25,11],[33,6,33,11],[34,6,34,11],[164,2,165,14],[167,1,167,4],[167,6,167,7],[167,10,167,14],[75,7,75,10],[76,7,76,10],[102,2,103,15],[104,2,104,15],[105,2,108,15],[109,2,111,15],[112,2,115,15],[118,2,120,15],[121,2,126,15],[127,2,128,15],[129,2,131,15],[132,2,135,15],[7,0,7,14],[6,0,6,14],[8,0,8,14],[162,6,162,8],[162,10,162,14],[53,7,53,10],[28,6,28,11],[21,6,21,9],[54,7,54,10],[55,7,55,10],[56,7,56,10],[57,7,57,10],[51,12,51,14],[47,7,47,10],[22,6,22,11],[23,6,23,11]]}
[null,null,null,null,null,null,null,null,null,null,null,null,null,null,null,null,null,null,null,null,"Burgenländischen",null,null,"Bundesgewässer",null,"§ 5. (1)",null,"Vorläufige Bewertung/Risikogebiete","Planungen im Rahmen des Hochwasserrisikomanagments (HWRL)"]
[null,null,null,null,null,null,null,null,null,null,null,null,null,null,null,null,null,null,null,null,"Kärntner",null,null,"Interessentengewässer",null,"§ 5. (2)",null,"Gefahren- und Risikoanalyse","Gewässerentwicklungs - u. Risikomanagementkonzept (GE-RM)"]
[null,null,null,null,null,null,null,null,null,"Logo Land",null,null,null,null,null,null,null,null,null,null,"Niederösterreichischen",null,null,null,null,"§ 5. und § 6.",null,"Risikomanagementplanung/Evaluierung","Ereignisdokumentation"]
[null,null,null,null,null,null,null,null,null,null,null,null,null,null,null,null,null,null,null,null,"Oberösterreichischen",null,null,"Gemeinde",null,"§ 6. (1)",null,"Vorstudie","Ereignisanalyse"]
[null,null,null,null,null,null,null,null,null,null,null,null,null,null,null,null,null,null,null,null,"Salzburger",null,null,"Genossenschaft",null,"§ 6. (2)",null,"Bestandsaufnahme","Abflussuntersuchung"]
[null,null,null,null,null,null,null,null,null,null,null,null,null,null,null,null,null,null,null,null,"Steiermärkischen",null,null,"Interessent",null,"§ 8. (1)",null,"Maßnahmenkonzept","Gefahrenzonenplan lt. Wasserrecht"]
["Finanzierungsansuchen und -vertrag",null,null,null,null,null,null,null,null,null,null,null,null,null,null,null,null,null,null,null,"Tiroler",null,null,"Land",null,"§ 8. (2)",null,"Ereignisdokumentation","Generelles Projekt"]
["für Maßnahmen im Sammelverzeichnis",null,null,null,null,null,null,null,null,null,null,null,null,null,null,null,null,null,null,null,"Vorarlberger",null,null,"Republik Österreich",null,null,null,"Vermessung","Vorstudie"]
["Stammdaten",null,null,null,null,null,null,null,null,null,null,null,null,null,null,null,null,null,null,null,"Wiener",null,null,"Wasserverband",null,"§ 25. (1)",null,"Abflussuntersuchung (Ereignismodellierung)","Detailprojekt"]
[null,null,null,null,null,null,null,null,null,null,null,null,null,null,null,null,null,null,null,null,null,null,null,null,null,"§ 25. (2)",null,"Abflussuntersuchung","Schutzmaßnahmen"]
["An die",null,null,null,null,null,null,null,null,null,null,null,null,null,null,null,null,null,null,null,null,null,null,null,null,"§ 25. (3)",null,"Gefahrenzonenplanung","Sofortmaßnahme"]
["Kommunalkredit Public Consulting GmbH",null,null,null,null,null,null,null,null,null,null,null,null,null,null,null,null,null,null,null,null,null,null,"BMN M28",null,"§ 25. (4)",null,"Maßnahmenplanung","Instandhaltungsmaßnahmen"]
["Türkenstraße 9",null,null,null,null,null,null,null,null,null,null,null,null,null,null,null,null,null,null,null,"Projektliste ab 1 Mio. Euro",null,null,"BMN M31",null,"§ 25. (7)",null,"Vorsorge","Gewässerpflegeplan/-konzept"]
["1090 Wien",null,null,null,null,null,null,null,null,null,null,null,null,null,null,null,null,null,null,null,"Projektliste bis 1 Mio. Euro",null,null,"BMN M34",null,"§ 26. (1)",null,"Ersatzmaßnahme","Schutzwasserwirtschaftliches Sonderprojekt"]
[null,null,null,null,null,null,null,null,null,null,null,null,null,null,null,null,null,null,null,null,"Projektliste SFM",null,null,"Lambert",null,"§ 26. (2)",null,"Linearmaßnahme"]
[null,null,null,null,null,null,null,null,null,null,null,null,null,null,null,null,null,null,null,null,"Sammelverzeichnis",null,null,"GK M28",null,"§ 26. (3)",null,"HW Rückhaltemaßnahme"]
["im Wege des Amtes der",null,null,null,null,null,null,null,null,null,null,"  Landesregierung",null,null,null,null,null,null,null,null,"Sammelverzeichnis SFM",null,null,"GK M31",null,"§ 28. (2)",null,"Kombinierte Maßnahme (Linear u. HW-Rückhalt)"]
[null,null,null,null,null,null,null,null,null,null,null,null,null,null,null,null,null,null,null,null,null,null,null,"GK M34",null,"§ 28. (2) Z1",null,"Gewässerökologische Maßnahmen"]
[1,"Angaben zum Projekt",null,null,null,null,null,null,null,null,null,null,null,null,null,null,null,null,null,null,null,null,null,"UTM 32N",null,"§ 28. (2) Z2",null,"Gewässerpflegemaßnahmen"]
[null,null,null,null,null,null,null,null,null,null,null,null,null,null,null,null,null,null,null,null,null,null,null,"UTM 33N",null,"§ 28. (2) Z3",null,"Sonstige Schutzmaßnahmen"]
[null,null,"EDV-Kennzahl",null,null,null,null,null,null,null,null,null,null,null,null,null,null,null,null,null,null,null,null,"WGS84",null,null,null,"Feststoffentnahme"]
[null,null,"HW-OID",null,null,null,null,null,null,null,null,null,null,null,null,null,null,null,null,null,null,null,null,"Web Mercator",null,"ja",null,"Instandsetzung"]
[null,null,"Gewässername",null,null,null,null,null,null,null,null,null,null,null,null,null,null,null,null,null,null,null,null,null,null,"nein",null,"Sonstige Sofortmaßnahme"]
[null,null,"Bezeichnung",null,null,null,null,null,null,null,null,null,null,null,null,null,null,null,null,null,null,null,null,null,null,null,null,"Sonstige Instandhaltungsmaßnahmen"]
[null,null,"Kurzbeschreibung"]
[null,null,"Gewässerart"]
[]
[null,null,"Vorhabenstyp",null,null,null,null,null,null,null,null,null,null,null,1]
[null,null,"Vorhabensinhalte"]
[]
[null,null,"Baubeginn (geplant)"]
[null,null,"Bauende (geplant)"]
[]
[null,null,"Bauträger"]
[null,null,"Erhaltungsverpflichteter"]
[null,null,"Finanzierung WBFG"]
[null,null,"Antrag mittels"]
[null,null,"Ereignis-ID in HW-FDB"]
[]
[null,null,"Gemeindekennzahl/en"]
[null,null,"APSFR-Nummer/n"]
[]
[null,null,"Projektionssystem"]
[null,null,"Koordinaten",null,null,"von","[Rechtswert]"]
[null,null,null,null,null,null,"[Hochwert]"]
[null,null,null,null,null,"bis","[Rechtswert]"]
[null,null,null,null,null,null,"[Hochwert]"]
[null,null,"Gewässer",null,null,"Route","[Kurz-RID]",null,null,null,null,"GGN-Version"]
[null,null,null,null,null,"von","[km]"]
[null,null,null,null,null,"bis","[km]"]
[]
[2,"Finanzierungsplan",null,null,null,null,null,null,null,null,null,null,"Finanzierungsanteil"]
[]
[null,null,null,null,null,null,"Bund",null,null,null,null,"EUR",null,null,"[%]"]
[null,null,null,null,null,null,"Land",null,null,null,null,"EUR",null,null,"[%]"]
[null,null,null,null,null,null,"Interessent",null,null,null,null,"EUR",null,null,"[%]"]
[null,null,null,null,null,null,"EU-Mittel",null,null,null,null,"EUR",null,null,1]
[null,null,"Name",null,null,null,"Sonderbeitrag",null,null,null,null,"EUR"]
[]
[null,null,null,null,null,null,"Summe",{"$f":"SUM(H54:K59)","v":0},null,null,null,"EUR","Summe",{"$f":"SUM(N54:N56)","v":0},"[%]"]
[]
[3,"Interessent und weitere kostenbeteiligte Interessenten",null,null,null,null,null,null,null,null,null,null,null,null,1]
[]
[null,null,null,null,"Name",null,null,null,null,null,"Der Interessent ist für die gegenständliche Maßnahme vorsteuerabzugsberechtigt."]
[null,null,null,null,"Beitrag [EUR]",null,null,null,{"$f":"F65","v":0},null,null,null,"nein",null,null,null,null,{"$f":"SUM(H64:H67)","v":0}]
[null,null,null,null,null,"Anteil [%]",{"$f":"IF($H$56>0,(F65/$H$56),\"\")","v":""},{"$f":"G66","v":""},null,null,null,null,null,null,null,null,null,{"$f":"H56-SUM(I64:I67)","v":0}]
[]
[4,"Aufteilung Bundesmittel (geplant)"]
[]
[null,null,null,null,null,"Jahr",2024,null,null,null,null,"EUR"]
[null,null,null,null,null,null,{"$f":"IF(G70>0,G70+1,\"\")","v":2025},null,null,null,null,"EUR"]
[null,null,null,null,null,null,{"$f":"IF(G70>0,G70+2,\"\")","v":2026},null,null,null,null,"EUR"]
[null,null,null,null,null,null,{"$f":"IF(G70>0,G70+3,\"\")","v":2027},null,null,null,null,"EUR"]
[null,null,null,null,null,null,{"$f":"IF(G70>0,G70+4,\"\")","v":2028},null,null,null,null,"EUR"]
[null,null,null,null,null,null,{"$f":"IF(G70>0,G70+5,\"\")","v":2029},null,null,null,null,"EUR"]
[null,null,null,null,null,null,{"$f":"IF(G70>0,G70+6,\"\")","v":2030},null,null,null,null,"EUR"]
[null,null,null,null,null,null,{"$f":"IF(G70>0,G70+7,\"\")","v":2031},null,null,null,null,"EUR"]
[]
[null,null,null,null,null,null,"Summe",{"$f":"SUM(H70:K77)","v":0},null,null,null,"EUR"]
[]
[5,"Finanzierungswerber",null,null,null,null,null,null,null,null,null,null,null,null,1]
[]
[null,null,"Name"]
[null,null,"Rechtsform"]
[null,null,"Ort"]
[null,null,"Postleitzahl"]
[null,null,"Straße/Nummer"]
[null,null,"Telefonnummer"]
[null,null,"E-Mail"]
[null,null,"Ansprechperson / Durchwahl"]
[]
[]
[null,"Der unterzeichnende Finanzierungswerber verpflichtet sich zur Einhaltung der Bestimmungen des WBFG, der jeweils gültigen Technischen Richtlinien für den Wasserbau (TRL-WB) und Durchführungsbestimmungen (DFB) sowie der Bedingungen im Finanzierungsvertrag und bestätigt die Richtigkeit der für die Finanzierung maßgebenden Daten (Finanzierungsansuchen, sämtliche Projektunterlagen). Weiters bestätigt der Finanzierungswerber, dass er über die für die Durchführung der Maßnahme erforderlichen Bewilligungen (insbesondere die wasserrechtliche und naturschutzrechtliche) verfügt."]
[]
[]
[]
[]
[null,"Der Finanzierungswerber stimmt der Veröffentlichung seines Projekts sowie der Weitergabe seiner Daten zu statistischen Zwecken gemäß allgemeinen Vertragsbedingungen nach Zustandekommen eines Finanzierungsvertrags zu."]
[]
[null,"Informationen zum Datenschutz: www.umweltfoerderung.at/datenschutz"]
[]
[null,"Vertragsbedingungen:"]
[null,"-","Grundlage für die Finanzierungsentscheidung bilden die mit dem Finanzierungsansuchen vorgelegten Unterlagen gemäß Durchführungsbestimmungen zu den Technischen Richtlinien für den Wasserbau (DFB) idgF."]
[]
[null,"-","Die Allgemeinen Vertragsbedingungen (Beilage) bilden einen integrierenden Bestandteil dieses Vertrages."]
[null,"-","Sofern der Finanzierungsnehmer seinerseits jemanden Dritten mit der Umsetzung der Maßnahme betraut (z.B. im Rahmen einer Betrauung mit einer Dienstleistung von allgemeinem wirtschaftlichen Interesse), verpflichtet sich der Finanzierungsnehmer sicherzustellen, dass die Betrauung und Finanzierung der Maßnahme im Einklang mit den wettbewerbsrechtlichen Bestimmungen und den Bestimmungen dieses Finanzierungsvertrages erfolgt."]
[]
[]
[]
[null,"-","Der Finanzierungsnehmer ermächtigte die Wasserbau-Landesdienststelle alles Erforderliche zur Durchführung der geplanten Maßnahmen zu veranlassen. Diese Ermächtigung kann auch die Vergabe von Aufträgen an Dritte samt diesbezüglichen Verfahren gemäß Bundesvergabegesetz BVergG umfassen."]
[]
[]
[null,"-","Die endgültige Feststellung der finanzierungsfähigen Kosten und der anteiligen Bundesmittel erfolgt mit der Endabrechnung. Im Zuge der Endabrechnung kann von der Kommunalkredit Public Consulting GmbH (KPC) gemäß DFB eine Erhöhung der finanzierungsfähigen Investitionskosten um höchstens 10 % plus 10.000 Euro jedoch maximal 100.000 Euro anerkannt werden. In diesem Fall erhöht sich das Nominale entsprechend dem Finanzierungsanteil."]
[]
[]
[]
[]
[null,"Auszahlungsbedingungen:"]
[null,"-","Die Auszahlung der Bundesmittel erfolgt nach Maßgabe eines positiven Arbeitsfortschrittes. Der Finanzierungsnehmer verpflichtet sich, die durch eine Finanzierung gemäß WBFG sowie durch EU- oder Sonderbeiträge nicht gedeckten Kosten aus eigenen Mitteln aufzubringen."]
[]
[]
[null,"-","Die Auszahlung erfolgt aufgrund einer Anmeldung durch die Wasserbau-Landesdienststelle bei der KPC auf ein bei der Wasserbau-Landesdienststelle einzurichtendes Konto, und zwar ausschließlich nur insoweit, als es sich um anerkannte und finanzierungsfähige Kosten handelt, und nicht früher, als die Bundesmittel zur Leistung fälliger Zahlungen durch den Finanzierungsnehmer für die anerkannte Leistung entsprechend dem Finanzierungszweck benötigt werden. Die zur Finanzierung eingereichten Rechnungen müssen von der Wasserbau-Landesdienststelle überprüft und anerkannt sein und den Vorgaben des Finanzierungsgebers entsprechen."]
[]
[]
[]
[]
[]
[null,"-","Der Finanzierungsgeber behält sich vor, die Auszahlung von Bundesmitteln zurückzubehalten. Dies insbesondere, wenn und solange Umstände vorliegen, die die ordnungsgemäße Durchführung der Leistung nicht gewährleistet erscheinen lassen."]
[]
[null,"-","Für den Fall, dass Bundesmittel nicht unmittelbar nach ihrer Überweisung an die Wasserbau-Landesdienststelle für fällige Zahlungen im Rahmen des Finanzierungszweckes verwendet werden können, sind die anfallenden Zinsen auf die Bundesmittel anzurechnen."]
[]
[]
[null,"-","Die Endabrechnungsunterlagen sind spätestens 1 Jahr nach Fertigstellung der Maßnahme der Wasserbau-Landesdienststelle vorzulegen. Nach Überprüfung dieser Unterlagen und Durchführung der Kollaudierung (spätestens zwei Jahre nach Fertigstellung bzw. spätestens ein Jahr nach Vorlage der Endabrechnungsunterlagen) werden sie an die KPC weitergeleitet, die die Endabrechnung vornimmt."]
[]
[]
[]
[]
[]
[]
["Finanzierungswerber"]
[]
[]
[null,"Ort",null,null,null,null,"Datum",null,null,null,"Rechtsverbindliche Fertigung"]
[]
[]
["Wasserbau-Landesdienststelle",null,null,null,null,null,null,null,null,null,"(Hinweis: Bestätigung für Antrag)"]
[]
[null,null,"SachbearbeiterIn Land"]
[]
[null,null,"Das Finanzierungsansuchen wurde gemäß den Bestimmungen des WBFG, der TRL-WB und den Durchführungsbestimmungen zur TRL-WB (DFB) geprüft und"]
[]
[]
[null,null,null,"  positiv begutachtet."]
[]
[]
[]
[null,"Ort",null,null,null,null,"Datum",null,null,null,"Rechtsverbindliche Fertigung"]
[]
[]
[]
["Wasserbau-Landesdienststelle",null,null,null,null,null,null,null,null,null,"(Hinweis: Annahmeerklärung nach Genehmigung)"]
[]
[null,null,"SachbearbeiterIn Land"]
[]
[null,null,"Die Wasserbau-Landesdienststelle erklärt die vorbehaltlose Annahme des gegenständlichen Finanzierungsvertrages. Eine Kopie des unterfertigten Vertrages ist innerhalb 1 Monats an die KPC zu übermitteln."]
[]
[]
[]
[null,"Ort",null,null,null,null,"Datum",null,null,null,"Rechtsverbindliche Fertigung"]

{"sheet":"Controlling","index":1,"n_rows":45,"n_cols":12,"rows_kept":45,"cut":false,"hidden":false,"merged":[[11,5,11,6],[12,5,12,6],[32,12,32,14],[35,12,35,14],[38,12,38,14],[42,1,43,15],[44,1,45,15],[14,12,14,14],[17,12,17,14],[20,12,20,14],[23,12,23,14],[26,12,26,14],[29,12,29,14]]}
[]
[]
[]
[]
[]
[]
[null,"Finanzierungsansuchen"]
[null,"Controllingdaten"]
[]
[]
[]
[null,null,"EDV-Kennzahl",null,null,{"$f":"Ansuchen_SV!G21","v":0}]
[null,null,"HW-OID",null,null,{"$f":"Ansuchen_SV!G22","v":0}]
[]
[null,null,"Bearbeitungslänge der relevanten Fließgewässer bei Planungen",null,null,null,null,null,null,null,null,"[km]"]
[null,null,null,"(nur bei GZP, Vorstudie, GE-RM, Generelles Projekt erforderlich)"]
[]
[null,null,"geschützte Bewohner",null,null,null,null,null,null,null,null,"[Stk.]"]
[null,null,null,"(Haupt-, Nebenwohnsitz, Beschäftigte, direkt Betroffene)"]
[]
[null,null,"geschützte Objekte",null,null,null,null,null,null,null,null,"[Stk.]"]
[null,null,null,"(Wohn- und Nicht-Wohngebäude)"]
[]
[null,null,"geschaffenes Retentionsvolumen",null,null,null,null,null,null,null,null,"[m³]"]
[null,null,null,"(durch technische Maßnahmen, z.B. Rückhaltebecken)"]
[]
[null,null,"gesicherte Gewässer- oder Retentionsflächen",null,null,null,null,null,null,null,null,"[ha]"]
[null,null,null,"(Grundbeschaffung durch Ankauf bzw. Dienstbarkeit)"]
[]
[null,null,"geschaffene neue Gewässerfläche",null,null,null,null,null,null,null,null,"[ha]"]
[null,null,null,"(durch Aufweitung)"]
[]
[null,null,"geschaffener linearer Hochwasserschutz",null,null,null,null,null,null,null,null,"[km]"]
[null,null,null,"(Länge der Maßnahme, z.B. Hochwasserschutzdamm)"]
[]
[null,null,"durchgängig gemachte Querbauwerke, z.B. Sohlstufen, Rampen od. Schwellen",null,null,null,null,null,null,null,null,"[Stk.]"]
[null,null,null,"(Fisch- und Organismendurchgängigkeit) "]
[]
[null,null,"Nutzen-Kosten-Verhältnis",null,null,null,null,null,null,null,null,"[-]"]
[null,null,null,"(aus der Kosten-Nutzen-Untersuchung, ohne Wertsteigerungen) "]
[]
[null,"Hinweise:"]
[null,"Die Anzahl der geschützten Bewohner entspricht der Summe der Angaben für \"direkte Betroffene\" und \"betroffene Beschäftigte\" beim Bemessungsereignis (z.B. HQ100) in der Kosten-Nutzen-Untersuchung / Formblatt Bevölkerung, Beschäftigte."]
[]
[null,"Die Anzahl der geschützten Objekte entspricht der Summe der Angaben für \"Wohngebäude\" und \"Nicht-Wohngebäude\" beim Bemessungsereignis (z.B. HQ100) in der Kosten-Nutzen-Untersuchung / Formblatt Flächennutzungen."]

{"sheet":"AVB_SV","index":2,"n_rows":108,"n_cols":9,"rows_kept":108,"cut":false,"hidden":false,"merged":[[4,8,7,12],[4,1,7,5],[8,1,11,5],[12,1,14,5],[17,1,20,5],[14,8,19,12],[20,8,36,12],[3,1,3,5],[78,1,78,5],[60,1,60,5],[79,1,80,5],[51,1,55,5],[29,1,35,5],[36,1,40,5],[41,1,42,5],[43,1,45,5],[46,1,48,5],[49,1,50,5],[81,1,86,5],[61,1,67,5],[68,1,71,5],[72,1,72,5],[73,1,77,5],[44,8,50,12],[16,1,16,5],[15,1,15,5],[23,1,24,5],[25,1,28,5],[21,1,22,5],[98,8,98,12],[99,8,99,12],[100,8,106,12],[107,8,116,12],[0,1,0,12],[1,1,1,12],[87,1,97,5],[51,8,58,12],[60,8,60,12],[61,8,62,12],[63,8,68,12],[69,8,78,12],[79,8,88,12],[89,8,96,12],[8,8,13,12],[37,8,43,12]]}
[null,"ALLGEMEINE VERTRAGSBEDINGUNGEN"]
[null,"(für Maßnahmen im Sammelverzeichnis)"]
[]
[null,"Allgemeines"]
["1.","Der Finanzierungsvertrag wird mit der ordnungsgemäß unterfertigten Annahme durch die Wasserbau-Landesdienststelle rechtswirksam, wobei der Finanzierungsvertrag nur bei vorbehaltsloser Annahme zustande kommt.",null,null,null,null,null,"12.","den Baubeginn sowie den Zeitpunkt der Fertigstellung der Maßnahmen der Wasserbau-Landesdienststelle bekannt zu geben, wobei die Fertigstellung bis spätestens zwei Jahre nach Zusicherung der Finanzierung zu erfolgen hat. "]
[]
[]
[]
["2.","Allfällige Finanzierungsvertragsänderungen bedürfen der Schriftform. Mündliche Zusatzvereinbarungen werden nicht Bestandteil des Finanzierungsvertrages. Eine Änderung dieser Bestimmung kann nur schriftlich erfolgen.",null,null,null,null,null,"13.","die Wasserbau-Landesdienststelle über alle Änderungen der geplanten Maßnahmen im Zuge der Ausführung unverzüglich zu informieren und die Zustimmung dafür einzuholen, soweit es sich dabei nicht um geringfügige Änderungen handelt. Eine geringfügige Änderung liegt jedenfalls nicht mehr bei einem zusätzlichen Projekt oder bei einer zusätzlichen wasserrechtlichen Bewilligung vor,"]
[]
[]
[]
["3.","Als Gerichtsstand für alle Rechtsstreitigkeiten, die sich aus dem Finanzierungsvertrag ergeben, wird das sachlich zuständige Gericht in Wien vereinbart."]
[]
[null,null,null,null,null,null,null,"14.","fortlaufende Aufzeichnungen über die Durchführung der Maßnahme zu führen, sodass jederzeit der Arbeitsfortschritt festgestellt werden kann. Über die Gebarung der Maßnahme einschließlich ausbezahlter Finanzierungsmittel sind Aufzeichnungen nach kaufmännischen und haushaltsrechtlichen Gesichtspunkten in übersichtlicher und leicht überprüfbarer Form zu führen,"]
[null,"Verpflichtungen"]
[null,"Der Finanzierungsnehmer ist verpflichtet,"]
["1.","das Wasserbautenförderungsgesetz (WBFG) idgF, die Technischen Richtlinien für den Wasserbau (TRL-WB) idgF, sowie die Durchführungsbestimmungen zu den Technischen Richtlinien für den Wasserbau (DFB) idgF einzuhalten,"]
[]
[]
[null,null,null,null,null,null,null,"15.","den Organen der Kommunalkredit Public Consulting GmbH bzw. des Bundesministeriums für Land- und Forstwirtschaft, Regionen und Wasserwirtschaft (BML) und den von diesen Beauftragten sowie den Organen des Landes, den Organen des Rechnungshofes, sowie im Falle der Kofinanzierung durch die EU den Kontrollorganen der EU jederzeit Auskünfte (einschließlich Nachweise) hinsichtlich der finanzierten Maßnahme zu erteilen und bei der Evaluierung mitzuwirken. Zu diesem Zweck hat der Finanzierungsnehmer bzw. die Wasserbau-Landesdienststelle auf Aufforderung, insbesondere die Einsicht in die Bücher und Belege sowie die sonstigen, der Überprüfung der Durchführung dienenden Unterlagen zu gewähren, Auskünften von Bezug habenden Banken zuzustimmen sowie das Betreten von Grundstücken und Gebäuden während der üblichen Geschäfts- und Betriebsstunden und die Durchführung von Messungen und Überprüfungen zu gestatten. Diese vertragliche Verpflichtung gilt für die Dauer von zehn Jahre nach der letzten Auszahlung. Während dieses Zeitraumes sind Belege und Aufzeichnungen sicher und geordnet aufzubewahren,"]
["2.","über die zugesagte Finanzierung weder durch Abtretung, Anweisung oder Verpfändung, noch auf eine andere Weise unter Lebenden zu verfügen,"]
[]
["3.","die Bundesmittel widmungsgemäß, wirtschaftlich, sparsam und zweckmäßig zu verwenden,"]
[]
["4.","alle Ereignisse, die die Durchführung oder Erreichung des Finanzierungszweckes der Maßnahmen verzögern, unmöglich machen oder deren Abänderung erfordern würde, der Wasserbau-Landesdienststelle unverzüglich anzuzeigen,"]
[]
[]
[]
["5.","die Wasserbau-Landesdienststelle über beabsichtigte, in Behandlung stehende oder erledigte Ansuchen oder Anträge auf Finanzierung der Maßnahmen bei anderen Finanzierungsgebern zu informieren. Zu diesem Zweck wird dem Finanzierungsnehmer eine unter Sanktion stehende Mitteilungspflicht bis zum Abschluss der Auszahlung der Finanzierung auferlegt, die auch jene Finanzierungen betrifft, um die er nachträglich ansucht,"]
[]
[]
[]
[]
[]
[]
["6.","die Bestimmungen des Gleichbehandlungsgesetzes, BGBl. I Nr. 66/2004 idgF, das Bundes-Behindertengleichstellungsgesetz, BGBl. I Nr. 82/2005 idgF, sowie das Diskriminierungsverbot gemäß § 7 b des Behinderten-einstellungsgesetzes, BGBl. Nr. 22/1970 idgF, zu beachten, sofern der Finanzierungsnehmer diesen unterliegt,"]
[null,null,null,null,null,null,null,"16.","für die Dauer der Baudurchführung eine Hinweistafel aufzustellen und nach Fertigstellung der Maßnahme eine Erinnerungstafel anzubringen, falls dies gemäß den Vorgaben des BML erforderlich ist. Die Hinweis- bzw. Erinnerungstafel hat den Vorgaben des BML zu entsprechen. Die Erinnerungstafel ist in dauerhafter Ausführung an geeigneter Stelle anzubringen und hat einen entsprechenden Text lautend auf den Finanzierungsgeber zu enthalten,"]
[]
[]
[]
["7.","sämtliche für ihn verbindliche vergabe- und wettbewerbsrechtliche Bestimmungen einzuhalten,"]
[]
["8.","die Planung und örtliche Bauaufsicht der Maßnahmen von dafür Befugten oder einer Fachabteilung oder einem Bauamt einer Gebietskörperschaft durchführen zu lassen, "]
[null,null,null,null,null,null,null,"17.","dem BML alle geplanten öffentlichkeits- und medienwirksamen Maßnahmen (Spatenstiche, Eröffnungen, sonstige Pressetermine, etc.) rechtzeitig bekannt zu geben. Die terminliche und inhaltliche Planung der öffentlichkeits- und medienwirksamen Maßnahmen hat in Abstimmung mit dem BML – Sektion Wasserwirtschaft zu erfolgen. Es sind dabei die Regeln für einheitliche Informations- und Publizitätsmaßnahmen des BML anzuwenden,"]
[]
["9.","bei der Ausführung der Maßnahmen und bei den eingesetzten Produkten auf die Langlebigkeit und Qualität sowie auf die Energieeffizienz Bedacht zu nehmen,"]
[]
[]
["10.","die Ausführung der Maßnahmen von dafür Befugten durchführen zu lassen, "]
[]
["11.","die ordnungsgemäße Instandhaltung, den Betrieb, die Verteidigung im Hochwasserfall, die Durchführung notwendiger Folgemaßnahmen, die Wartung und Pflege sowie die Überwachung und Prüfung der finanzierungsgegenständlichen Bauwerke und Anlagenteile durch fachkundiges Personal durchführen zu lassen,",null,null,null,null,null,"18.","im Falle, dass die Finanzierung aus EU-Mitteln gewährt wird, die Durchführung von Informations- und Publizitätsmaßnahmen im Rahmen der jeweils geltenden unionsrechtlichen Vorschriften sicherzustellen und zur Kenntnis zu nehmen, dass insbesondere der Name des Finanzierungsempfängers, die Bezeichnung des Vorhabens sowie die Höhe der gewährten Finanzierungsmittel nach Maßgabe der jeweils geltenden unionsrechtlichen Vorschriften veröffentlicht werden können."]
[]
[]
[]
[]
[]
[]
[]
[]
[null,"Einstellung und Rückforderung der Finanzierung",null,null,null,null,null,null,"Datenschutz und Persönlichkeitsrechte"]
[null,"Der Finanzierungsnehmer ist verpflichtet, unter Vorbehalt der Geltendmachung weitergehender gesetzlicher Ansprüche, insbesondere auch einer Rückzahlungsverpflichtung gemäß § 30b Ausländerbeschäftigungsgesetz, BGBl. Nr. 218/1975 idgF, eine bereits gewährte Finanzierung über schriftliche Aufforderung sofort zurückzuzahlen, bzw. eine zugesicherte, aber noch nicht ausbezahlte Finanzierung erlischt, wenn",null,null,null,null,null,null,"Der Finanzierungsnehmer nimmt zur Kenntnis, dass das BML und die Kommunalkredit Public Consulting GmbH berechtigt sind, "]
[]
[null,null,null,null,null,null,null,"1.","die im Zusammenhang mit der Anbahnung und Abwicklung des Vertrages anfallenden personenbezogenen Daten zu verwenden, wenn dies für den Abschluss und die Abwicklung des Finanzierungsvertrages, für Kontrollzwecke und die Wahrnehmung der gesetzlich übertragenen Aufgaben, einschließlich für statistische Zwecke im Zusammenhang mit dem Vollzug der Finanzierungen, erforderlich ist, "]
[]
[]
[]
[]
["1.","Organe oder Beauftragte des BML, des Landes, des Rechnungshofes, der EU oder der Kommunalkredit Public Consulting GmbH über wesentliche Umstände unrichtig oder unvollständig unterrichtet worden sind,"]
[null,null,null,null,null,null,null,"2.","die für die Beurteilung des Vorliegens der Finanzierungs-voraussetzungen und zur Prüfung des Verwendungsnachweises erforderlichen personenbezogenen Daten über die von ihm selbst erteilten Auskünfte hinaus auch durch Rückfragen bei den in Betracht kommenden anderen Organen des Bundes oder bei einem anderen Rechtsträger, der einschlägige Finanzierungen zuerkennt oder abwickelt, oder bei sonstigen Dritten zu erheben und an diese zu übermitteln sowie Transparenzportalabfragen gemäß § 32 Abs. 5 Transparenzdatenbankgesetz 2012, BGBl. I Nr. 99/2012 idgF, durchzuführen und"]
[]
[]
["2.","Verpflichtungen, Auflagen und Bedingungen nicht eingehalten werden,"]
["3.","vorgesehene Berichte oder Nachweise nicht erbracht oder erforderliche Auskünfte nicht erteilt worden sind, sofern in diesen Fällen eine schriftliche, entsprechend befristete und den ausdrücklichen Hinweis auf die Rechtsfolgelage der Nichtbefolgung enthaltende Mahnung erfolglos geblieben ist,"]
[]
[]
[]
[]
["4.","von Organen der EU die Aussetzung oder Rückforderung verlangt wird,"]
["5.","der Finanzierungsnehmer die für die Umsetzung der Maßnahme erforderlichen behördlichen Bewilligungen nicht erlangt.",null,null,null,null,null,"3.","erforderlichenfalls Daten insbesondere an Organe und Beauftragte des Rechnungshofes (insbesondere gemäß § 3 Abs. 2, § 4 Abs. 1 und § 13 Abs. 3 des Rechnungshofgesetzes 1948, BGBl. Nr. 144/1948 idgF), des Bundesministeriums für Finanzen (insbesondere gemäß §§ 57 bis 61 und 47 Bundeshaushaltsgesetz 2013, BGBl. I Nr. 139/2009 idgF, sowie § 14 ARR 2014), der EU nach den jeweiligen einschlägigen unionsrechtlichen Bestimmungen (z.B. gemäß Anhang III der Allgemeinen Gruppenfreistellungsverordnung), an den Wirtschaftsprüfer zur Prüfung gemäß § 3a Abs. 2 WBFG sowie zur Auswertung für Analysen zu übermitteln oder offenzulegen,"]
[]
[null,"Sofern die Leistung ohne Verschulden des Finanzierungsnehmers nur teilweise durchgeführt werden kann oder worden ist, kann das anweisende Organ vom Erlöschen des Anspruches und von der Rückzahlung der auf die durchgeführte Teilleistung entfallenden Finanzierungsmittel Abstand nehmen, wenn die durchgeführte Teilleistung für sich allein Finanzierungswürdig ist."]
[]
[]
[]
[]
[]
[null,"Bei Vorliegen eines Rückforderungsfalles werden die zurückzuzahlenden Beträge vom Tage der Auszahlung an mit 4 vH pro Jahr unter Anwendung der Zinseszinsmethode verzinst. Liegt dieser Zinssatz unter dem von der Europäischen Union für Rückforderungen festgelegten Zinssatz, wird der von der Europäischen Union festgelegte herangezogen. Für den Fall eines Verzuges bei der Rückzahlung der Finanzierung werden Verzugszinsen vereinbart. Diese sind mit 4 Prozentpunkten über dem jeweils geltenden Basiszinssatz, mindestens jedoch 4 vH festgelegt. Der Basiszinssatz, der am ersten Kalendertag eines Halbjahres gilt, ist für das jeweilige Halbjahr maßgebend. Allfällige weitergehende zivilrechtliche Ansprüche bleiben hiervon unberührt."]
[]
[null,null,null,null,null,null,null,"4.","sowie - sofern für die Wahrnehmung der gesetzlich übertragenen Aufgaben erforderlich - seinen Namen oder seine Firma unter Angabe der Rechtsform, seiner Gemeinde, des Finanzierungsanteils, des Barwerts der zugesagten Finanzierungssumme, des Zweckes der Finanzierung, des Titels des Projekts einschließlich dessen, für die Finanzierung wesentlichen technischer Daten, gegebenenfalls auch unter Verwendung von Bildmaterial, nach Vertragsabschluss zu veröffentlichen und zu diesem Zweck auch an Dritte zu übermitteln."]
[]
[]
[]
[]
[]
[]
[]
[]
[null,null,null,null,null,null,null,null,"Veröffentlichung von Daten"]
[null,null,null,null,null,null,null,null,"Der Finanzierungsnehmer stimmt zu, dass"]
[null,null,null,null,null,null,null,"1.","sein Name oder seine Firma unter Angabe der Rechtsform, seiner Gemeinde, des Finanzierungsanteils, des Barwerts der zugesagten Finanzierungssumme, des Zweckes der Finanzierung, des Titels des Projekts einschließlich dessen für die Finanzierung wesentlichen technischer Daten, gegebenenfalls auch unter Verwendung von Bildmaterial, nach Vertragsabschluss veröffentlicht und zu diesem Zweck übermittelt werden kann,"]
[]
[]
[]
[]
[]
[]
[null,null,null,null,null,null,null,"2.","die Daten gemäß Ziffer 1 sowie die sonstigen im Zusammenhang mit der Anbahnung und Abwicklung des Vertrages anfallenden personenbezogenen Daten zu statistischen Zwecken im Zusammenhang mit der Finanzierung an sonstige Dritte übermittelt werden können, wobei die Zustimmung verweigert werden kann oder ein Widerruf jederzeit möglich ist und die Unzulässigkeit der Verarbeitung oder Übermittlung dieser Daten ab Widerruf bewirkt wird. Der Finanzierungsnehmer garantiert, dass er für die übermittelten Daten Dritter die entsprechenden Einwilligungen bezüglich Daten- und Persönlichkeitsschutz eingeholt hat."]

{"sheet":"EA","index":3,"n_rows":137,"n_cols":29,"rows_kept":137,"cut":false,"hidden":false,"merged":[[127,3,129,14],[131,3,134,14],[136,3,137,14],[62,5,62,6],[63,5,63,6],[63,12,63,13],[72,7,72,10],[76,6,76,11],[77,6,77,11],[66,12,66,14],[68,7,68,10],[69,7,69,10],[70,7,70,10],[85,1,90,15],[91,1,93,15],[98,1,98,4],[56,2,56,3],[56,4,56,5],[56,7,56,10],[24,6,24,11],[15,6,15,10],[20,6,20,9],[21,6,21,11],[22,6,22,11],[23,6,23,11],[45,7,45,11],[26,6,26,12],[27,6,27,11],[32,6,32,11],[33,6,33,11],[34,6,34,11],[35,6,35,11],[36,6,36,11],[41,6,41,8],[42,7,42,11],[43,7,43,11],[44,7,44,11],[38,6,38,11],[39,6,39,11],[46,7,46,10],[47,7,47,10],[48,7,48,10],[50,12,50,14],[52,7,52,10],[53,7,53,10],[54,7,54,10],[55,7,55,10],[58,7,58,10],[62,10,64,11],[98,6,98,7],[78,6,78,11],[79,6,79,11],[80,6,80,11],[81,6,81,11],[82,6,82,11],[83,6,83,11],[98,10,98,14],[116,3,117,14],[119,3,120,14],[122,3,123,14],[103,6,103,8],[103,10,103,14],[105,2,106,14],[109,1,109,4],[109,6,109,7],[109,10,109,14]]}
[null,null,null,null,null,null,null,null,null,null,null,null,null,null,null,null,null,null,null,null,"Burgenländischen",null,null,"Bundesgewässer",null,"§ 5. (1)",null,"Vorläufige Bewertung/Risikogebiete","Planungen im Rahmen des Hochwasserrisikomanagments (HWRL)"]
[null,null,null,null,null,null,null,null,null,null,null,null,null,null,null,null,null,null,null,null,"Kärntner",null,null,"Interessentengewässer",null,"§ 5. (2)",null,"Gefahren- und Risikoanalyse","Gewässerentwicklungs - u. Risikomanagementkonzept (GE-RM)"]
[null,null,null,null,null,null,null,null,null,null,null,null,null,null,null,null,null,null,null,null,"Niederösterreichischen",null,null,null,null,"§ 5. und § 6.",null,"Risikomanagementplanung/Evaluierung","Ereignisdokumentation"]
[null,null,null,null,null,null,null,null,null,null,null,null,null,null,null,null,null,null,null,null,"Oberösterreichischen",null,null,"Gemeinde",null,"§ 6. (1)",null,"Vorstudie","Ereignisanalyse"]
[null,null,null,null,null,null,null,null,null,null,null,null,null,null,null,null,null,null,null,null,"Salzburger",null,null,"Genossenschaft",null,"§ 6. (2)",null,"Bestandsaufnahme","Abflussuntersuchung"]
[null,null,null,null,null,null,null,null,null,null,null,null,null,null,null,null,null,null,null,null,"Steiermärkischen",null,null,"Interessent",null,"§ 8. (1)",null,"Maßnahmenkonzept","Gefahrenzonenplan lt. Wasserrecht"]
["Finanzierung - Endabrechnung",null,null,null,null,null,null,null,null,null,null,null,null,null,null,null,null,null,null,null,"Tiroler",null,null,"Land",null,"§ 8. (2)",null,"Ereignisdokumentation","Generelles Projekt"]
["Stammdaten",null,null,null,null,null,null,null,null,null,null,null,null,null,null,null,null,null,null,null,"Vorarlberger",null,null,"Republik Österreich",null,"§ 25. (1)",null,"Vermessung","Vorstudie"]
[null,null,null,null,null,null,null,null,null,null,null,null,null,null,null,null,null,null,null,null,"Wiener",null,null,"Wasserverband",null,"§ 25. (2)",null,"Abflussuntersuchung (Ereignismodellierung)","Detailprojekt"]
["An die",null,null,null,null,null,null,null,null,null,null,null,null,null,null,null,null,null,null,null,null,null,null,null,null,"§ 25. (3)",null,"Abflussuntersuchung","Schutzmaßnahmen"]
["Kommunalkredit Public Consulting GmbH",null,null,null,null,null,null,null,null,null,null,null,null,null,null,null,null,null,null,null,null,null,null,"BMN M28",null,"§ 25. (4)",null,"Gefahrenzonenplanung","Sofortmaßnahme"]
["Türkenstraße 9",null,null,null,null,null,null,null,null,null,null,null,null,null,null,null,null,null,null,null,"Projektliste ab 1 Mio. Euro",null,null,"BMN M31",null,"§ 25. (7)",null,"Maßnahmenplanung","Instandhaltungsmaßnahmen"]
["1090 Wien",null,null,null,null,null,null,null,null,null,null,null,null,null,null,null,null,null,null,null,"Projektliste bis 1 Mio. Euro",null,null,"BMN M34",null,"§ 26. (1)",null,"Vorsorge","Gewässerpflegeplan/-konzept"]
[null,null,null,null,null,null,null,null,null,null,null,null,null,null,null,null,null,null,null,null,"Projektliste SFM",null,null,"Lambert",null,"§ 26. (2)",null,"Ersatzmaßnahme","Schutzwasserwirtschaftliches Sonderprojekt"]
[null,null,null,null,null,null,null,null,null,null,null,null,null,null,null,null,null,null,null,null,"Sammelverzeichnis",null,null,"GK M28",null,"§ 26. (3)",null,"Linearmaßnahme"]
["im Wege des Amtes der",null,null,null,null,null,null,null,null,null,null,"  Landesregierung",null,null,null,null,null,null,null,null,"Sammelverzeichnis SFM",null,null,"GK M31",null,"§ 28. (2)",null,"HW Rückhaltemaßnahme"]
[null,null,null,null,null,null,null,null,null,null,null,null,null,null,null,null,null,null,null,null,null,null,null,"GK M34",null,"§ 28. (2) Z1",null,"Kombinierte Maßnahme (Linear u. HW-Rückhalt)"]
[1,"Angaben zum Projekt",null,null,null,null,null,null,null,null,null,null,null,null,null,null,null,null,null,null,null,null,null,"UTM 32N",null,"§ 28. (2) Z2",null,"Gewässerökologische Maßnahmen"]
[null,null,null,null,null,null,null,null,null,null,null,null,null,null,null,null,null,null,null,null,null,null,null,"UTM 33N",null,"§ 28. (2) Z3",null,"Sonstige Schutzmaßnahmen"]
[null,null,"EDV-Kennzahl",null,null,null,null,null,null,null,null,null,null,null,null,null,null,null,null,null,null,null,null,"WGS84",null,null,null,"Gewässerpflegemaßnahmen"]
[null,null,"HW-OID",null,null,null,null,null,null,null,null,null,null,null,null,null,null,null,null,null,null,null,null,"Web Mercator",null,"ja",null,"Feststoffentnahme"]
[null,null,"Gewässername",null,null,null,null,null,null,null,null,null,null,null,null,null,null,null,null,null,null,null,null,null,null,"nein",null,"Instandsetzung"]
[null,null,"Bezeichnung",null,null,null,null,null,null,null,null,null,null,null,null,null,null,null,null,null,null,null,null,null,null,null,null,"Sonstige Sofortmaßnahme"]
[null,null,"Kurzbeschreibung",null,null,null,null,null,null,null,null,null,null,null,null,null,null,null,null,null,null,null,null,null,null,null,null,"Sonstige Instandhaltungsmaßnahmen"]
[null,null,"Gewässerart"]
[]
[null,null,"Vorhabenstyp",null,null,null,null,null,null,null,null,null,null,null,1]
[null,null,"Vorhabensinhalte"]
[]
[null,null,"Baubeginn (tatsächlich)"]
[null,null,"Bauende (tatsächlich)"]
[]
[null,null,"Bauträger"]
[null,null,"Erhaltungsverpflichteter"]
[null,null,"Finanzierung WBFG"]
[null,null,"Antrag mittels"]
[null,null,"Ereignis-ID in HW-FDB"]
[]
[null,null,"Gemeindekennzahl/en"]
[null,null,"APSFR-Nummer/n"]
[]
[null,null,"Projektionssystem"]
[null,null,"Koordinaten",null,null,"von","[Rechtswert]"]
[null,null,null,null,null,null,"[Hochwert]"]
[null,null,null,null,null,"bis","[Rechtswert]"]
[null,null,null,null,null,null,"[Hochwert]"]
[null,null,"Gewässer",null,null,"Route","[Kurz-RID]",null,null,null,null,"GGN-Version"]
[null,null,null,null,null,"von","[km]"]
[null,null,null,null,null,"bis","[km]"]
[]
[2,"Projektausgaben",null,null,null,null,null,null,null,null,null,null,"Finanzierungsanteil"]
[]
[null,null,null,null,null,null,"Bund",null,null,null,null,"EUR",null,null,"[%]"]
[null,null,null,null,null,null,"Land",null,null,null,null,"EUR",null,null,"[%]"]
[null,null,null,null,null,null,"Interessent",null,null,null,null,"EUR",null,null,"[%]"]
[null,null,null,null,null,null,"EU-Mittel",null,null,null,null,"EUR",null,null,1]
[null,null,"Name",null,null,null,"Sonderbeitrag",null,null,null,null,"EUR"]
[]
[null,null,null,null,null,null,"Summe",{"$f":"SUM(H53:K58)","v":0},null,null,null,"EUR","Summe",{"$f":"SUM(N53:N55)","v":0},"[%]"]
[]
[3,"Interessent und weitere kostenbeteiligte Interessenten",null,null,null,null,null,null,null,null,null,null,null,null,1]
[]
[null,null,null,null,"Name",null,null,null,null,null,"Der Interessent ist für die gegenständliche Maßnahme vorsteuerabzugsberechtigt."]
[null,null,null,null,"Beitrag [EUR]",null,null,null,{"$f":"F64","v":0},null,null,null,"nein",null,null,null,null,{"$f":"SUM(H63:H66)","v":0}]
[null,null,null,null,null,"Anteil [%]",{"$f":"IF($H$55>0,(F64/$H$55),\"\")","v":""},{"$f":"G65","v":""},null,null,null,null,null,null,null,null,null,{"$f":"H55-SUM(I63:I66)","v":0}]
[]
[4,"Kostenaufteilung*",null,null,null,null,null,null,null,null,null,null,"Nutzungsdauer**"]
[]
[null,null,null,null,null,null,"Planung und Nebenkosten",null,null,null,null,"EUR","80 J.",null,"[%]"]
[null,null,null,null,null,null,"Grundbeschaffung (Ablösen, Entschädigungen)",null,null,null,null,"EUR","40 J.",null,"[%]"]
[null,null,null,null,null,null,"Bau (Eigenregie- und Fremdleistungen)",null,null,null,null,"EUR","25 J.",null,"[%]",null,null,{"$f":"100-N73","v":{"$error":"#VALUE!"}}]
[]
[null,null,null,null,null,null,"Summe",{"$f":"SUM(H69:K71)","v":0},null,null,null,"EUR","Summe",{"$f":"IF(H71<>0,SUM(N69:N71),\"\")","v":""},"[%]",null,null,{"$f":"$H$59-H73","v":0}]
[]
[5,"Finanzierungsnehmer",null,null,null,null,null,null,null,null,null,null,null,null,1]
[]
[null,null,"Name"]
[null,null,"Rechtsform"]
[null,null,"Ort"]
[null,null,"Postleitzahl"]
[null,null,"Straße/Nummer"]
[null,null,"Telefonnummer"]
[null,null,"E-Mail"]
[null,null,"Ansprechperson / Durchwahl"]
[]
[null,"Der unterzeichnende Finanzierungsnehmer bestätigt, verpflichtet sich zur Einhaltung der Bestimmungen des WBFG, der jeweils gültigen Technischen Richtlinien für die Bundeswasserbauverwaltung (RIWA-T) und Durchführungsbestimmungen (DFB) sowie der Bedingungen im Finanzierungsvertrag und bestätigt die Richtigkeit der für die Finanzierung maßgebenden Daten (Finanzierungsansuchen, sämtliche Projektunterlagen). Weiters bestätigt der Finanzierungsnehmer, dass er über die für die Durchführung der Maßnahme erforderlichen Bewilligungen (insbesonderer die wasserrechtliche und naturschutzrechtliche) verfügt hat."]
[]
[]
[]
[]
[]
[null,"Der Finanzierungsnehmer bestätigt, dass die Maßnahme gemäß den Bestimmungen des WBFG, der jeweils gültigen Technischen Richtlinien für den Wasserbau (TRL-WB) und Durchführungsbestimmungen (DFB) sowie der Bedingungen im Finanzierungsvertrag positiv abgeschlossen wurde, und dass die datenschutzrechtlichen Bestimmungen eingehalten wurden."]
[]
[]
[]
[]
["Finanzierungsnehmer"]
[]
[]
[null,"Ort",null,null,null,null,"Datum",null,null,null,"Rechtsverbindliche Fertigung"]
[]
["Wasserbau-Landesdienststelle"]
[]
[null,null,"SachbearbeiterIn Land"]
[]
[null,null,"Die Wasserbau-Landesdienststelle bestätigt, dass der Saldenausgleich erfolgt ist und die technisch und finanziell einwandfreie Durchführung der Maßnahme festgestellt wurde."]
[]
[]
[]
[]
[null,"Ort",null,null,null,null,"Datum",null,null,null,"Rechtsverbindliche Fertigung"]
[]
[]
[]
["*Die erbrachten Leistungen bzw. angefallenen Kosten sind auf die folgenden Kategorien aufzuteilen:"]
[null,null,"- Planung und Nebenkosten:"]
[null,null,null,"u.a. auch externe örtliche Bauaufsicht, Vermessung, chemische und geotechnische Voruntersuchungen, Leistungen für Ausschreibungen, Baustellenkoordinator, Prüfungen"]
[]
[null,null,"- Grundbeschaffung (Ablösen, Entschädigungen): "]
[null,null,null,"u.a. auch Verkehrswertgutachten, Grundbucheintragungsgebühr, Notariatsgebühren, Flur- und Fischereientschädigungen"]
[]
[null,null,"- Bau (Eigenregie- und Fremdleistungen):"]
[null,null,null,"u.a. auch Personalkosten der Eigenregiepartien, Gerätemiete, Strom und Treibstoff, archäologische Grabungen, Kampfmittelerkundung"]
[]
[]
["**Die Baukosten der errichteten Schutzbauten bzw. Anlagen sind prozentuell auf die folgenden Nutzungsdauern aufzuteilen:"]
[null,null,"- Nutzungsdauer 80 Jahre:"]
[null,null,null,"Massivbauliche Maßnahmen (Hochwasser-, Lawinen- und Steinschlagschutzdämme (aus Erdmaterialien); Lawinenschutzbauwerke aus Stahl; Schutzmauern; Rückhaltebecken und Wildbachsperren inkl. Stahlrechenkonstruktion; Einlauf- und Entnahmebauwerke, Künstliche Gerinne, Rohrdurchlässe)"]
[]
[]
[null,null,"- Nutzungsdauer 40 Jahre:"]
[null,null,null,"Ingenieurbiologische Verbauten (Erosionsschutztechnische Sicherung von Bauwerken und Landschaftselementen (z.B. Böschungen oder Ufer) durch den Einsatz von Pflanzen und pflanzlichem Material); Holzbauten (Schutzbauwerke aus Holz); Stahlwasserbauten (Bewegliche Verschlusskonstruktionen aus Metall für absperrbare Öffnungen; Mobile Hochwasserschutzelemente)"]
[]
[]
[]
[null,null,"- Nutzungsdauer 25 Jahre:"]
[null,null,null,"Elektromaschinelle Ausrüstung (Elektrische und maschinelle Ausrüstung und Steuerung); Steinschlagschutznetze (inkl. Verankerung)"]

{"sheet":"EA Controlling","index":4,"n_rows":45,"n_cols":12,"rows_kept":45,"cut":false,"hidden":false,"merged":[[44,1,45,15],[26,12,26,14],[29,12,29,14],[32,12,32,14],[35,12,35,14],[38,12,38,14],[42,1,43,15],[23,12,23,14],[11,5,11,6],[12,5,12,6],[14,12,14,14],[17,12,17,14],[20,12,20,14]]}
[]
[]
[]
[]
[]
[]
[null,"Finanzierung - Endabrechnung"]
[null,"Controllingdaten"]
[]
[]
[]
[null,null,"EDV-Kennzahl"]
[null,null,"HW-OID",null,null,{"$f":"EA!G21","v":0}]
[]
[null,null,"Bearbeitungslänge der relevanten Fließgewässer bei Planungen",null,null,null,null,null,null,null,null,"[km]"]
[null,null,null,"(nur bei GZP, Vorstudie, GE-RM, Generelles Projekt erforderlich)"]
[]
[null,null,"geschützte Bewohner",null,null,null,null,null,null,null,null,"[Stk.]"]
[null,null,null,"(Haupt-, Nebenwohnsitz, Beschäftigte, direkt Betroffene)"]
[]
[null,null,"geschützte Objekte",null,null,null,null,null,null,null,null,"[Stk.]"]
[null,null,null,"(Wohn- und Nicht-Wohngebäude)"]
[]
[null,null,"geschaffenes Retentionsvolumen",null,null,null,null,null,null,null,null,"[m³]"]
[null,null,null,"(durch technische Maßnahmen, z.B. Rückhaltebecken)"]
[]
[null,null,"gesicherte Gewässer- oder Retentionsflächen",null,null,null,null,null,null,null,null,"[ha]"]
[null,null,null,"(Grundbeschaffung durch Ankauf bzw. Dienstbarkeit)"]
[]
[null,null,"geschaffene neue Gewässerfläche",null,null,null,null,null,null,null,null,"[ha]"]
[null,null,null,"(durch Aufweitung)"]
[]
[null,null,"geschaffener linearer Hochwasserschutz",null,null,null,null,null,null,null,null,"[km]"]
[null,null,null,"(Länge der Maßnahme, z.B. Hochwasserschutzdamm)"]
[]
[null,null,"durchgängig gemachte Querbauwerke, z.B. Sohlstufen, Rampen od. Schwellen",null,null,null,null,null,null,null,null,"[Stk.]"]
[null,null,null,"(Fisch- und Organismendurchgängigkeit) "]
[]
[null,null,"Nutzen-Kosten-Verhältnis",null,null,null,null,null,null,null,null,"[-]"]
[null,null,null,"(aus der Kosten-Nutzen-Untersuchung, ohne Wertsteigerungen) "]
[]
[null,"Hinweise:"]
[null,"Die Anzahl der geschützten Bewohner entspricht der Summe der Angaben für \"direkte Betroffene\" und \"betroffene Beschäftigte\" beim Bemessungsereignis (z.B. HQ100) in der Kosten-Nutzen-Untersuchung / Formblatt Bevölkerung, Beschäftigte."]
[]
[null,"Die Anzahl der geschützten Objekte entspricht der Summe der Angaben für \"Wohngebäude\" und \"Nicht-Wohngebäude\" beim Bemessungsereignis (z.B. HQ100) in der Kosten-Nutzen-Untersuchung / Formblatt Flächennutzungen."]